Cogmind - Beta 17.1 @@@ ROGUE MODE // 2026.08.31 @ 19:12:15 Player: BigMaxPorter Result: Self-destructed Performance ------------- Evolutions (2) 1000 Regions Visited (5) 1000 Robots Destroyed (24) 120 Value Destroyed (664) 664 Prototype IDs (1) 20 Alien Tech Used (0) 0 Bonus (200) 200 TOTAL SCORE: 3004 Bonus ------- Pacifist 200 Cogmind --------- Core Integrity 426/550 Matter 300/300 Energy 16/100 System Corruption 0% Temperature Cool (45) Movement Core (600) Ox11 Location -8/Materials Parts ------- > --- POWER (2) -------- (None) > --- PROPULSION (3) --- (None) > --- UTILITY (4) ------ Large Storage Unit Visual Processing Unit Advanced ECM Suite Hardlight Generator > --- WEAPON (2) ------- Heavy Laser Heavy Laser > --- INVENTORY (15) --- Light Ion Engine Medium Storage Unit Large Battery (200) Experimental Sensor Array Advanced Targeting Computer ECM Suite Shield Generator Particle Gun Light Assault Rifle Assault Cannon Grenade Launcher Rocket Launcher Peak State ------------ > --- POWER ------------ Light Nuclear Core Light Nuclear Core > --- PROPULSION ------- Aluminum Leg Aluminum Leg Carbon-fiber Leg > --- UTILITY ---------- Large Storage Unit Visual Processing Unit Advanced ECM Suite Improved Light Armor Plating > --- WEAPON ----------- Heavy Laser Heavy Laser > --- INVENTORY -------- Light Ion Engine Aluminum Leg Carbon-fiber Leg Medium Storage Unit Large Battery Experimental Sensor Array Advanced Targeting Computer ECM Suite Hardlight Generator Shield Generator Particle Gun Light Assault Rifle Assault Cannon Grenade Launcher Rocket Launcher [Rating: 32] Favorites ----------- Power Light Ion Engine Engine Light Ion Engine Power Core Light Nuclear Core Propulsion Light Treads Treads Light Treads Leg Aluminum Leg Utility ECM Suite Device ECM Suite Storage Medium Storage Unit Processor Visual Processing Unit Protection Improved Light Armor Plating Weapon Light Assault Rifle Energy Gun Particle Gun Ballistic Gun Light Assault Rifle Launcher Rocket Launcher Build | -11 -10 -10 -9 -9 -8 ------- Run | Yrd Mat Min Mat Min Mat Slots Evolved 4 | . . . 2 . 2 Power 1 | . . . . . 1 Propulsion 1 | . . . 1 . . Utility 2 | . . . 1 . 1 Weapon . | . . . . . . Parts Attached 39 | 6 2 . 9 6 16 Power 7 | 1 . . 1 1 4 Engine 5 | 1 . . 1 1 2 Core 2 | . . . . . 2 Reactor . | . . . . . . Propulsion 8 | 2 . . 1 3 2 Treads 3 | 2 . . 1 . . Leg 5 | . . . . 3 2 Wheel . | . . . . . . Hover . | . . . . . . Flight . | . . . . . . Utility 11 | 1 2 . 3 . 5 Device 4 | . 1 . 1 . 2 Storage 4 | 1 1 . 1 . 1 Processor 1 | . . . . . 1 Hackware . | . . . . . . Protection 2 | . . . 1 . 1 Artifact . | . . . . . . Weapon 13 | 2 . . 4 2 5 Energy Gun 8 | . . . 3 . 5 Energy Cannon . | . . . . . . Ballistic Gun 4 | 2 . . 1 1 . Ballistic Cannon . | . . . . . . Launcher 1 | . . . . 1 . Special Weapon . | . . . . . . Impact Weapon . | . . . . . . Slashing Weapon . | . . . . . . Piercing Weapon . | . . . . . . Special Melee Weapon . | . . . . . . Unidentified Prototypes 1 | . . . 1 . . Parts Lost 17 | . . . 2 4 11 Power 6 | . . . 1 1 4 Propulsion 7 | . . . . 2 5 Utility 2 | . . . 1 . 1 Weapon 2 | . . . . 1 1 Highest Loss Streak 5 | . . . 1 4 5 To Critical Strikes . | . . . . . . Average Backups 8 | 1 4 7 9 8 10 Power . | . 1 2 . . . Propulsion 2 | . 2 2 3 2 1 Utility 2 | . . 1 2 2 5 Weapon 3 | . 1 1 3 4 3 Tool/Special . | . . . . . . Unused Backups 11 | . . . 2 . 9 Power 2 | . . . 2 . . Propulsion 1 | . . . . . 1 Utility 4 | . . . . . 4 Weapon 4 | . . . . . 4 Tool/Special . | . . . . . . Average Slot Usage (%) 93 | . 95 100 95 72 93 Engine 8 | . 14 14 10 1 5 Core 3 | . . . . . 7 Treads 15 | . 28 28 30 2 . Leg 12 | . . . . 22 26 Device 12 | . 3 14 16 22 9 Storage 11 | . 20 14 12 11 9 Processor 3 | . . . . . 8 Protection 3 | . . . 3 . 7 Energy Gun 6 | . . . 9 . 10 Ballistic Gun 13 | . 28 28 12 9 5 Peak Build Rating 32 | 6 7 8 15 16 32 Average Rating 14 | 4 6 7 13 12 22 On Entrance 8 | . 6 7 8 15 16 Avg Prop Armor Cover (%) 7 | . . . . 8 5 Naked Turns . | . . . . . . Heaviest Build 44 | 12 16 14 24 24 44 Greatest Support 60 | 40 40 40 60 60 40 Greatest Overweight (x) 1 | . . . . 1 1 Average Overweight (x) . | . . . . . . Largest Inventory Capacity 15 | 8 8 8 10 10 15 Average Capacity 10 | 7 8 8 9 10 13 Most Carried 15 | 4 6 8 10 10 15 Average Carried 8 | 1 4 7 9 8 10 Final Capacity 15 | 8 8 8 10 10 15 Final Carried 12 | 4 6 8 10 8 12 Class Distribution -------------------- 100% | Mutant Dominant Class ---------------- Mutant | -10/Materials Mutant | -10/Mines Mutant | -9/Materials Mutant | -9/Mines Mutant | -8/Materials Resources | -11 -10 -10 -9 -9 -8 ----------- Run | Yrd Mat Min Mat Min Mat Matter Collected 1030 | 238 232 10 125 21 404 Remotely . | . . . . . . Salvage Created 885 | . . . 278 14 593 Parts 56 | . . . 17 2 37 Haulers Intercepted 1 | . . . . . 1 Recyclers Shooed 2 | . . . 1 . 1 Parts Field Recycled . | . . . . . . Retrieved Matter . | . . . . . . Parts Self-Destructed . | . . . . . . Prevented . | . . . . . . Parts Restored . | . . . . . . Kills | -11 -10 -10 -9 -9 -8 ------- Run | Yrd Mat Min Mat Min Mat Combat Hostiles Destroyed 20 | . . . 6 . 14 Guns 17 | . . . 6 . 11 AOE 3 | . . . . . 3 Classes Destroyed 7 | . . . 2 1 4 Worker 1 | . . . . 1 . Hauler 1 | . . . . . 1 Recycler 2 | . . . . . 2 Swarmer 7 | . . . . . 7 Grunt 8 | . . . 5 . 3 Sentry 4 | . . . 1 . 3 Hunter 1 | . . . . . 1 Best Kill Streak 4 | . . . 2 1 4 Combat Bots Only 4 | . . . 2 . 4 Max Kills in Single Turn 2 | . . . 1 1 2 Gunslinging . | . . . . . . Exploded 2 | . . . . . 2 Melee . | . . . . . . Uniques/NPCs Destroyed . | . . . . . . Combat | -11 -10 -10 -9 -9 -8 -------- Run | Yrd Mat Min Mat Min Mat Hostile Shots Fired 200 | . . . 82 12 106 Missed 52 | . . . 15 3 34 Hits 148 | . . . 67 9 72 Melee 2 | . . . . 2 . Projectile 146 | . . . 67 7 72 Critical Strikes 3 | . . . 2 . 1 Damage Taken 2096 | . . . 853 151 1092 Core 303 | . . . 169 10 124 Absorbed by Shields 32 | . . . . . 32 Regen/Repaired (Parts) 12 | . . . . . 12 Core Remaining (%) 85 | 100 . 100 . 55 . Volleys Fired 102 | . . . 40 7 55 Largest 2 | . . . 2 1 2 Hottest 138 | . . . 90 33 138 Shots Fired 160 | . . . 64 7 89 Gun 158 | . . . 64 7 87 Cannon . | . . . . . . Launcher 2 | . . . . . 2 Special . | . . . . . . Kinetic 90 | . . . 49 7 34 Thermal 53 | . . . . . 53 Explosive 2 | . . . . . 2 Electromagnetic 15 | . . . 15 . . Robot Hit Streak 12 | . . . 12 1 10 Robot Miss Streak 5 | . . . 2 2 5 Penetration Max . | . . . . . . Secondary Targets . | . . . . . . Shots Hit Robots 103 | . . . 50 3 50 Core Hits 52 | . . . 17 2 33 Critical Kills . | . . . . . . Critical Parts Destroyed . | . . . . . . Critical Strikes . | . . . . . . Melee Attacks . | . . . . . . Impact . | . . . . . . Slashing . | . . . . . . Piercing . | . . . . . . Sneak Attacks . | . . . . . . Combat Hostiles . | . . . . . . Follow-up Attacks . | . . . . . . Damage Inflicted 1664 | . . . 537 47 1080 Guns 1384 | . . . 532 44 808 Cannons . | . . . . . . Explosions 254 | . . . . . 254 Melee . | . . . . . . Ramming 26 | . . . 5 3 18 Kinetic 655 | . . . 301 44 310 Thermal 498 | . . . . . 498 Explosive 254 | . . . . . 254 Electromagnetic 231 | . . . 231 . . Impact . | . . . . . . Slashing . | . . . . . . Piercing . | . . . . . . Highest Corruption . | . . . . . . Average Corruption . | . . . . . . Corruption Purged . | . . . . . . Corruption Blocked . | . . . . . . Overload Shots . | . . . . . . Overflow Damage . | . . . . . . Projectiles . | . . . . . . Explosions . | . . . . . . Melee . | . . . . . . Knockbacks . | . . . . . . Impact . | . . . . . . Kinetic . | . . . . . . Secondary . | . . . . . . Self-Inflicted Damage 38 | . . . . . 38 Shots 1 | . . . . . 1 Rammed 6 | . . . 4 2 . Targets Rammed 8 | . . . 4 2 2 Kicked 2 | . . . . . 2 Crushed . | . . . . . . Highest Temperature 546 | . . . 195 . 546 Average Temperature 128 | . . . 37 . 156 Received Heat Transfer 690 | . . . 441 60 189 Effects 8 | . . . . . 8 Shutdowns 3 | . . . . . 3 Energy Bleed 2 | . . . . . 2 Matter Decay 1 | . . . . . 1 Damage (minor) 2 | . . . . . 2 Siege Activations . | . . . . . . Martial Activations . | . . . . . . Shielding Activations . | . . . . . . Robots Disrupted . | . . . . . . Combat Hostiles . | . . . . . . Robots Corrupted . | . . . . . . Combat Hostiles . | . . . . . . Parts Fried 2 | . . . 2 . . Impact Corruptions . | . . . . . . Robots Melted . | . . . . . . Combat Hostiles . | . . . . . . Parts Melted 5 | . . . . . 5 Heat Transferred 1025 | . . . . . 1025 Parts Sabotaged . | . . . . . . Parts Stolen . | . . . . . . Parts Stripped . | . . . . . . Power Chain Reactions 1 | . . . 1 . . Alert | -11 -10 -10 -9 -9 -8 ------- Run | Yrd Mat Min Mat Min Mat Maximum Alert Level . | . . . . . . Low Security (%) 100 | 100 100 100 100 100 100 Level 1 . | . . . . . . Level 2 . | . . . . . . Level 3 . | . . . . . . Level 4 . | . . . . . . Level 5 . | . . . . . . High Security . | . . . . . . Max Security . | . . . . . . Peak Influence 92 | . . . 50 15 92 Initial . | . . . . . . Average 15 | . . . 10 . 32 Influence Increases 602 | . . . 180 20 402 Destroy 0b10 Robot/C 400 | . . . 120 . 280 Destroy 0b10 Robot/NC 20 | . . . . 5 15 Destroy Leader 112 | . . . 40 . 72 Disable Machine 30 | . . . 15 . 15 Destroy Structure 25 | . . . 5 . 20 Lose Combat Pursuer 15 | . . . . 15 . Influence Decreases 589 | . . . 180 20 389 Time Decay 479 | . . . 160 20 299 Lost Part 110 | . . . 20 . 90 Squads Dispatched 7 | . 1 . 2 . 4 Investigation 4 | . 1 . 1 . 2 Extermination . | . . . . . . Reinforcement 3 | . . . 1 . 2 Assault . | . . . . . . Garrison . | . . . . . . Intercept . | . . . . . . Searches Triggered . | . . . . . . Construction Impeded . | . . . . . . Haulers Reinforced . | . . . . . . Active Scanning Responses . | . . . . . . Cargo Convoy Interrupts . | . . . . . . Stealth | -11 -10 -10 -9 -9 -8 --------- Run | Yrd Mat Min Mat Min Mat Distress Signals 3 | . 1 . 1 . 1 Communications Jammed . | . . . . . . Distress Signals . | . . . . . . Times Spotted 46 | . 5 . 13 6 22 Peak Tracking Total 14 | . 5 . 2 14 4 Tactical Retreats 4 | . . . 3 1 . ECM-based Alert Blocks 5 | . . . 5 . . Traps | -11 -10 -10 -9 -9 -8 ------- Run | Yrd Mat Min Mat Min Mat Traps Triggered 3 | . . . 1 . 2 Indirectly . | . . . . . . Trap Hack Attempts . | . . . . . . Triggered . | . . . . . . Disarmed . | . . . . . . Reprogrammed . | . . . . . . Reused . | . . . . . . Traps Extracted . | . . . . . . Installed . | . . . . . . Triggered . | . . . . . . Machines | -11 -10 -10 -9 -9 -8 ---------- Run | Yrd Mat Min Mat Min Mat Machines Disabled 2 | . . . 1 . 1 Max in Single Turn 1 | . . . 1 . 1 Machines Repaired . | . . . . . . Machines Dismantled . | . . . . . . Machines Sabotaged . | . . . . . . Overloaded Fab Kills . | . . . . . . Hacking | -11 -10 -10 -9 -9 -8 --------- Run | Yrd Mat Min Mat Min Mat Machines Accessed 5 | . 1 . 1 1 2 Terminals 3 | . 1 . 1 1 . Fabricators . | . . . . . . Repair Stations 1 | . . . . . 1 Recycling Units 1 | . . . . . 1 Scanalyzers . | . . . . . . Garrison Access . | . . . . . . Total Hacks 12 | . 3 . 1 1 7 Successful 10 | . 3 . 1 . 6 Failed 2 | . . . . 1 1 Catastrophic . | . . . . . . Database Lockouts . | . . . . . . Manual . | . . . . . . Terminals 5 | . 3 . 1 1 . Fabricators . | . . . . . . Repair Stations 4 | . . . . . 4 Recycling Units 3 | . . . . . 3 Scanalyzers . | . . . . . . Garrison Access . | . . . . . . Terminal Hacks 4 | . 3 . 1 . . Record 1 | . 1 . . . . Emergency Access Points 1 | . . . 1 . . Alert Level 1 | . 1 . . . . Locate Traps 1 | . 1 . . . . Fabricator Hacks . | . . . . . . Repair Station Hacks 3 | . . . . . 3 Scan Component 2 | . . . . . 2 Repair 1 | . . . . . 1 Recycling Unit Hacks 3 | . . . . . 3 Recycle Component 1 | . . . . . 1 Process 1 | . . . . . 1 Report Inventory 1 | . . . . . 1 Scanalyzer . | . . . . . . Garrison Access Hacks . | . . . . . . Unauthorized Hacks . | . . . . . . Terminals . | . . . . . . Fabricators . | . . . . . . Repair Stations . | . . . . . . Recycling Units . | . . . . . . Scanalyzers . | . . . . . . Garrison Access . | . . . . . . Data Cores Recovered . | . . . . . . Used . | . . . . . . Hacking Detections 3 | . 1 . . . 2 Full Trace Events 3 | . 1 . . . 2 Feedback Events . | . . . . . . Feedback Blocked . | . . . . . . Robot Schematics Acquired . | . . . . . . Robots Built . | . . . . . . Authchips . | . . . . . . Time . | . . . . . . Total Robot Build Rating . | . . . . . . Part Schematics Acquired . | . . . . . . Parts Built . | . . . . . . Authchips . | . . . . . . Time . | . . . . . . Total Part Build Rating . | . . . . . . Part Studies Acquired . | . . . . . . Parts Repaired 1 | . . . . . 1 Time 26 | . . . . . 26 Parts Recycled 1 | . . . . . 1 Recycled Matter . | . . . . . . Retrieved Matter . | . . . . . . Retrieved Components . | . . . . . . Parts Scanalyzed . | . . . . . . Part Schematics Acquired . | . . . . . . Parts Damaged . | . . . . . . Bothacking | -11 -10 -10 -9 -9 -8 ------------ Run | Yrd Mat Min Mat Min Mat Used RIF Installer . | . . . . . . Robots Hacked . | . . . . . . Non-combat . | . . . . . . Combat . | . . . . . . Robot Hacks Applied . | . . . . . . Relay Couplers Released . | . . . . . . Fabnet Peak Effective % . | . . . . . . Robots Rewired . | . . . . . . Allies Hacked . | . . . . . . Hacks Repelled . | . . . . . . Allies | -11 -10 -10 -9 -9 -8 -------- Run | Yrd Mat Min Mat Min Mat Total Allies . | . . . . . . Largest Group . | . . . . . . Highest-Rated Group . | . . . . . . Highest-Rated Ally . | . . . . . . Total Orders . | . . . . . . Ally Attacks . | . . . . . . Total Damage . | . . . . . . Kills . | . . . . . . Allies Corrupted . | . . . . . . Allies Melted . | . . . . . . Intel | -11 -10 -10 -9 -9 -8 ------- Run | Yrd Mat Min Mat Min Mat Active Infowar (turns) 2561 | . 72 537 710 35 1207 Optics 1168 | . . . . . 1168 ECM 2308 | . 72 537 710 35 954 Robot Analysis Total . | . . . . . . Derelict Logs Recovered 2 | . . 1 . 1 . Drone Launches . | . . . . . . Drone Recoveries . | . . . . . . Exploration | -11 -10 -10 -9 -9 -8 ------------- Run | Yrd Mat Min Mat Min Mat Turns Passed 3086 | 117 239 537 718 268 1207 Spaces Moved 1662 | 71 147 329 369 152 594 Core 8 | 8 . . . . . Treads 915 | 63 147 329 369 7 . Legs 739 | . . . . 145 594 Wheels . | . . . . . . Hover . | . . . . . . Flight . | . . . . . . Fastest Speed 50 | 50 160 160 160 120 120 Average Speed 160 | 147 160 160 160 153 163 Slowest Speed 190 | 160 160 160 160 190 190 Overloaded Moves . | . . . . . . Propulsion Burnouts . | . . . . . . Robots Hopped . | . . . . . . Potential Cave-ins . | . . . . . . Cave-ins Triggered . | . . . . . . Exploration Rate (%) 33 | 4 24 54 27 50 43 Regions Visited 5 Branch Regions 2 Pre-discovered Areas 1 | . . . . 1 . Known Exits Taken 1 | . . 1 . . . Unknown Exits Taken 4 | 1 1 . 1 1 . Scrap Searched 1 | . . 1 . . . Spaces Dug . | . . . . . . Terrain Destroyed 24 | . . . 4 . 20 Melee . | . . . . . . Projectile 2 | . . . . . 2 AOE 22 | . . . 4 . 18 Terrain Rammed . | . . . . . . Walls Destroyed . | . . . . . . Machines Disabled . | . . . . . . Actions | -11 -10 -10 -9 -9 -8 --------- Run | Yrd Mat Min Mat Min Mat Total 1926 | 80 150 340 440 179 737 Wait 66 | . . 10 9 7 40 Move 1657 | 70 146 328 368 151 594 Hop . | . . . . . . Pick Up 25 | 4 2 2 4 . 13 Fast Attach 25 | 6 1 . 7 3 8 Attach 11 | . . . 1 3 7 Detach 4 | . . . 1 1 2 Swap 12 | . 1 . 1 1 9 Drop 13 | . . . 5 1 7 Fire 102 | . . . 40 7 55 Melee . | . . . . . . Ram . | . . . . . . Kick 2 | . . . . . 2 Crush 6 | . . . 4 2 . Escape Stasis . | . . . . . . Rewire 3 | . . . . 3 . Trap . | . . . . . . Miscellaneous . | . . . . . . Route ------- -11/Scrapyard -10/Materials -10/Mines (discovered 2 exits: *Mat x2) -9/Materials -9/Mines (discovered 2 exits: *Mat x2) -8/Materials History --------- Turn | Location | Event 4 | -11/Scrapyard | Discovered new exit (range 16) 118 | -11/Scrapyard | Entered Materials 119 | -10/Materials | Met a group of wandering Federalists 306 | -10/Materials | Build established: Mutant 333 | -10/Materials | Discovered new exit (range 15) 357 | -10/Materials | Entered Mines 362 | -10/Mines | YI-UF0 nonchalantly dropped a Grenade Launcher on the ground 373 | -10/Mines | Identified exit to Materials 632 | -10/Mines | Found a damaged Exp. Sensor Array with a note attached 635 | -10/Mines | Found Prototype Device 875 | -10/Mines | Discovered exit to Materials (range 9) 894 | -10/Mines | Entered Materials 894 | -9/Materials | Evolved 2 slots: Propulsion x1, Utility x1 1511 | -9/Materials | Discovered new exit (range 8) 1612 | -9/Materials | Entered Mines 1613 | -9/Mines | Assembled infested the area 1660 | -9/Mines | Lost 4 parts (1p2n1w) 1681 | -9/Mines | A weapon hastily lodged in a ceiling crevice suddenly fell to the ground 1737 | -9/Mines | Found a hidden stash of uninstalled traps 1809 | -9/Mines | Discovered new exit (range 6) 1819 | -9/Mines | Received a Rocket Launcher from a helpful Derelict 1831 | -9/Mines | Discovered new exit (range 7) 1837 | -9/Mines | Learned location of Storage (-9) 1880 | -9/Mines | Entered Materials 1880 | -8/Materials | Evolved 2 slots: Power x1, Utility x1 2584 | -8/Materials | Repaired ECM Suite 3087 | -8/Materials | Self-destructed Last Messages --------------- 03063_ Slug penetrates Wall. 03067_ U-05 Engineer lays Concrete. 03067_ Penetrated by Slug. 03068_ Kicked U-05 Engineer. 03070_ Penetrated by Slug. 03070_ Lgt. Nuclear Core destroyed. 03076_ ALERT: Suspicious intruders detected, dispatching Specialist reinforcements to area. [Achievement: Heavy Suspicion] 03079_ Lgt. Nuclear Core destroyed. 03079_ Carbon-fiber Leg destroyed. 03079_ Penetrated by Slug. 03080_ U-05 Engineer lays Concrete. 03082_ Penetrated by Slug. 03083_ T-07 Excavator is excavating. 03083_ Carbon-fiber Leg destroyed. 03085_ Aluminum Leg destroyed. 03085_ Knocked back. 03085_ Slug penetrates Wall. Map ----- +----------------------------------------------------+ | ???????# #![ ###### / ?????????????? | | ???????# "" #![= #?????????????????????????????? | | ?#####?# T" +=[ #?????????????????????????????? | | ?# #?# "" #%# #####?????????????????????????? | | ?# #?# #!# #?????????????????????????? | | ?# #?# #=#]] ![[#?????????????????????????? | | ?## ##?###/####*#]]!! [#?????????????????????????? | | ??# #????# #??# ########?????????????????????????? | | ### ###??# #??# #####????????????????????????????? | | # #?## ##?# # #????????????????????????????? | | # "" ###[ #?# # #????????????????????????????? | | + T T #?# # #????????????????????????????? | | # ### #?# # ###########??????????????????? | | # #?## ##?# # ## #??????????????????? | | #######??# #??# # ## """ #??????????????????? | | # #??## ##?# # ## """ #??????????????????? | | # #### ### ##+### """ #??????????????????? | | # + T + #??????????????????? | | # # # ###### # """ #??????????????????? | | # # ########## # """ #??????????????????? | | # # + + + """ #??????????????????? | | # # ##""" " # # #??????????????????? | | # # ##""" T # #######+########## ??????? | | # # ##""" " # %% ?????? | | ###### ## + % H ?????? | | ?????# ##""" # h @ ?????? | | ?????# ##""" ### #####u########+#????????????? | | ?????# ##""" #?# #?? #????????????????????? | | ?????# #? #?# #?# #????????????????????? | | ###### #?#########?# #?# ###????????????????????? | | / # #???????????# #?###???????????????????????? | | # #########???# #???????????????????????????? | | """ + #???????????????????????????? | | """ # ##### #??# #?????????######????????????? | | """ # #???# #??? #?????????# ! #?##+#####???? | | # #???# #??? ??????????# +?? ????? | | ###### #???# #??? ??????????# #??# #????? | | ######+###?# #???!??????????# #??# #????? | | # #?# #???!??????????# #??# #????? | | # #?# #???#??????????#! #??# #???## | | # """ #?# #??????????????# #### ##### | | #""""" #?# #??????????????# + | | #""""" ! #?# #??????????????# ## ########## | | #""""" #?# ##################### #???????## | | # """ #?# #????????# | | # #?# ^ #####+###### ! #????????# | | # ! !#?# ^ """ ## #??## ########### | | #####+###### "T" ## ##### # # | | #### ## ## # # [ # | | # ##= ## # # # | +----------------------------------------------------+ Best States ------------- Heat Dissipation 45 Energy Generation 23 Energy Capacity 250 Matter Stores 500 Matter Capacity 500 Sight Range 18 Terrain Scan Density 10 ECM Strength 1 Armor Coverage 150 Evasion (%) 55 Recoil Reduction 3 Item Schematics ----------------- None Robot Schematics ------------------ None Fabricated ------------ Nothing Repaired ---------- ECM Suite | 40% | -8/Materials Studied --------- None Alien Tech Used ----------------- None Achievements -------------- Heavy Suspicion Organ Harvest Slippery One Challenges ------------ None Game ------ Seed InterceptIonAutohacker Manual? 0 Play Time 00:23:44 Cumulative 12.3 hours Start 2026.08.31 @ 18:50:08 End 2026.08.31 @ 19:12:15 Sessions 1 Manual Loads 0 Difficulty Rogue Special Mode None Game No. 30 Rogue 30 Adventurer 0 Explorer 0 Win Type - Total 0 Types 0/0/0/0/0/0/0/0/0/0 Lore% 8 Gallery% 17 Achievement% 10 Wizard Run 0 Options --------- Layout 1 ASCII 0 Keyboard 1 Movement Arrows Keybinds 0 Fullscreen 1 Font 24/Smallcaps Map View 50x35 Zoom Use 0% Tactical HUD 1 Map Filters NONE Filters NONE Steam 1 RUN: 0a55dbd2-e96b-4100-b329-39ec018f1a7a